[Event "Live Chess"]
[Site "Chess.com"]
[Date "2023.05.21"]
[Round "-"]
[White "xx_blindpuffin_xx"]
[Black "KeithArkell"]
[Result "0-1"]
[WhiteElo "2196"]
[BlackElo "2605"]
[TimeControl "300"]
[EndTime "17:40:54 PDT"]
[Termination "KeithArkell won on time"]

1. d4 {[%clk 0:04:57.9]} 1... e6 {[%clk 0:04:58.8]} 2. Bf4 {[%clk 0:04:56.1]}
2... Nf6 {[%clk 0:04:57.3]} 3. e3 {[%clk 0:04:55.1]} 3... c5 {[%clk 0:04:56.8]}
4. c3 {[%clk 0:04:53.8]} 4... cxd4 {[%clk 0:04:56.2]} 5. exd4 {[%clk 0:04:52.6]}
5... b6 {[%clk 0:04:54.8]} 6. Nf3 {[%clk 0:04:51.4]} 6... Be7 {[%clk 0:04:53.6]}
7. Be2 {[%clk 0:04:48.9]} 7... Ba6 {[%clk 0:04:50.1]} 8. O-O {[%clk 0:04:43.1]}
8... Bxe2 {[%clk 0:04:48.6]} 9. Qxe2 {[%clk 0:04:43]} 9... O-O {[%clk
0:04:47.3]} 10. h3 {[%clk 0:04:42.2]} 10... d6 {[%clk 0:04:46.8]} 11. Nbd2
{[%clk 0:04:34]} 11... Nbd7 {[%clk 0:04:45.9]} 12. Rfe1 {[%clk 0:04:21.2]} 12...
Re8 {[%clk 0:04:43.1]} 13. a4 {[%clk 0:04:19.7]} 13... a6 {[%clk 0:04:42.2]} 14.
Bh2 {[%clk 0:04:07.2]} 14... Qc7 {[%clk 0:04:39.5]} 15. Qd3 {[%clk 0:04:03]}
15... Qc6 {[%clk 0:04:37]} 16. Nc4 {[%clk 0:03:41]} 16... b5 {[%clk 0:04:31.8]}
17. axb5 {[%clk 0:03:36.1]} 17... axb5 {[%clk 0:04:30.7]} 18. Ne3 {[%clk
0:03:35.5]} 18... Nb6 {[%clk 0:04:28.5]} 19. d5 {[%clk 0:03:26.1]} 19... Nbxd5
{[%clk 0:04:26.6]} 20. Nd4 {[%clk 0:03:24.8]} 20... Qb7 {[%clk 0:04:23.6]} 21.
Qxb5 {[%clk 0:03:05.7]} 21... Qxb5 {[%clk 0:04:22.7]} 22. Nxb5 {[%clk
0:03:05.5]} 22... Nxe3 {[%clk 0:04:21.8]} 23. fxe3 {[%clk 0:02:54.9]} 23... Ne4
{[%clk 0:04:15]} 24. Nc7 {[%clk 0:02:44.8]} 24... Rxa1 {[%clk 0:04:13.2]} 25.
Rxa1 {[%clk 0:02:44.7]} 25... Rc8 {[%clk 0:04:10.7]} 26. Ra4 {[%clk 0:02:40.7]}
26... d5 {[%clk 0:04:08.9]} 27. Nb5 {[%clk 0:02:33.2]} 27... h5 {[%clk 0:04:07]}
28. Kf1 {[%clk 0:02:30.9]} 28... h4 {[%clk 0:04:05.3]} 29. Ke2 {[%clk
0:02:29.6]} 29... g5 {[%clk 0:03:58.4]} 30. Ra7 {[%clk 0:02:28.2]} 30... Bf8
{[%clk 0:03:49]} 31. Be5 {[%clk 0:02:09.6]} 31... f6 {[%clk 0:03:43.7]} 32. Bh2
{[%clk 0:02:08.4]} 32... e5 {[%clk 0:03:33.8]} 33. Nc7 {[%clk 0:02:04.2]} 33...
Rb8 {[%clk 0:03:30.4]} 34. Nxd5 {[%clk 0:01:34.8]} 34... Rxb2+ {[%clk
0:03:25.6]} 35. Kd3 {[%clk 0:01:14.9]} 35... Nf2+ {[%clk 0:03:05.2]} 36. Kc4
{[%clk 0:01:13.4]} 36... Bg7 {[%clk 0:03:04.4]} 37. Ne7+ {[%clk 0:01:09.8]}
37... Kh8 {[%clk 0:03:03]} 38. Nf5 {[%clk 0:01:05]} 38... Bf8 {[%clk 0:03:01.9]}
39. Rf7 {[%clk 0:00:50.2]} 39... Kg8 {[%clk 0:03:00.8]} 40. Ra7 {[%clk
0:00:49.2]} 40... Ne4 {[%clk 0:02:57.4]} 41. Kd5 {[%clk 0:00:43.6]} 41... Nxc3+
{[%clk 0:02:50.8]} 42. Ke6 {[%clk 0:00:42.7]} 42... Rxg2 {[%clk 0:02:49.7]} 43.
Kxf6 {[%clk 0:00:28.5]} 43... Rxh2 {[%clk 0:02:45.4]} 44. Kg6 {[%clk 0:00:23.3]}
44... Rb2 {[%clk 0:02:36.4]} 45. Ra8 {[%clk 0:00:20.1]} 45... Rb6+ {[%clk
0:02:34.4]} 46. Kxg5 {[%clk 0:00:19.6]} 46... Kf7 {[%clk 0:02:29.2]} 47. Nxh4
{[%clk 0:00:18.5]} 47... Be7+ {[%clk 0:02:28.1]} 48. Kg4 {[%clk 0:00:18]} 48...
Rb4+ {[%clk 0:02:25.7]} 49. Kf5 {[%clk 0:00:16.2]} 49... Rxh4 {[%clk 0:02:24.7]}
50. Kxe5 {[%clk 0:00:15.5]} 50... Re4+ {[%clk 0:02:20.9]} 51. Kf5 {[%clk
0:00:13.9]} 51... Rxe3 {[%clk 0:02:20.5]} 52. Ra7 {[%clk 0:00:11.7]} 52... Rxh3
{[%clk 0:02:18.1]} 53. Kg4 {[%clk 0:00:11.6]} 53... Rh4+ {[%clk 0:02:16.9]} 54.
Kg3 {[%clk 0:00:09.8]} 54... Ne4+ {[%clk 0:02:14.8]} 55. Kf3 {[%clk 0:00:08.4]}
55... Ke6 {[%clk 0:02:12.7]} 56. Ra6+ {[%clk 0:00:04.5]} 56... Bd6 {[%clk
0:02:11.8]} 57. Rb6 {[%clk 0:00:02.9]} 57... Ng5+ {[%clk 0:02:10.4]} 58. Kf2
{[%clk 0:00:01.5]} 58... Rh2+ {[%clk 0:02:08.9]} 59. Kg1 {[%clk 0:00:01]} 59...
Rd2 {[%clk 0:02:07.5]} 60. Kf1 {[%clk 0:00:00.9]} 60... Ne4 {[%clk 0:02:03.6]}
61. Rb1 {[%clk 0:00:00.8]} 61... Kf5 {[%clk 0:01:59.6]} 62. Kg1 {[%clk
0:00:00.2]} 62... Bc5+ {[%clk 0:01:57.1]} 0-1

[Event "Live Chess"]
[Site "Chess.com"]
[Date "2023.05.21"]
[Round "-"]
[White "peter-785"]
[Black "luckywookie"]
[Result "1-0"]
[WhiteElo "1201"]
[BlackElo "765"]
[TimeControl "300"]
[EndTime "17:41:04 PDT"]
[Termination "peter-785 won by checkmate"]

1. e4 {[%clk 0:04:57.6]} 1... c6 {[%clk 0:04:58.8]} 2. Nf3 {[%clk 0:04:56.5]}
2... d5 {[%clk 0:04:57.9]} 3. exd5 {[%clk 0:04:54.7]} 3... cxd5 {[%clk
0:04:56.6]} 4. d4 {[%clk 0:04:54.2]} 4... Nc6 {[%clk 0:04:53.9]} 5. Bb5 {[%clk
0:04:52.6]} 5... Bd7 {[%clk 0:04:52.4]} 6. c3 {[%clk 0:04:49.8]} 6... e6 {[%clk
0:04:47.8]} 7. O-O {[%clk 0:04:45.3]} 7... Bd6 {[%clk 0:04:44.9]} 8. Re1 {[%clk
0:04:30.5]} 8... Nge7 {[%clk 0:04:42.6]} 9. Bxc6 {[%clk 0:04:04.5]} 9... bxc6
{[%clk 0:04:39.1]} 10. Ne5 {[%clk 0:03:57.9]} 10... Bxe5 {[%clk 0:04:31.2]} 11.
Rxe5 {[%clk 0:03:37.2]} 11... Ng6 {[%clk 0:04:27.1]} 12. Re2 {[%clk 0:03:33]}
12... O-O {[%clk 0:04:14.7]} 13. Nd2 {[%clk 0:03:19.7]} 13... Re8 {[%clk
0:03:43.3]} 14. Nf3 {[%clk 0:03:11.6]} 14... f6 {[%clk 0:03:37.8]} 15. Qc2
{[%clk 0:02:54.1]} 15... e5 {[%clk 0:03:12.1]} 16. dxe5 {[%clk 0:02:47.7]} 16...
Nxe5 {[%clk 0:03:01.3]} 17. Nxe5 {[%clk 0:02:35.7]} 17... fxe5 {[%clk
0:02:55.5]} 18. Bd2 {[%clk 0:02:22.4]} 18... Qf6 {[%clk 0:02:47.2]} 19. Rae1
{[%clk 0:02:16.8]} 19... e4 {[%clk 0:02:30.5]} 20. Re3 {[%clk 0:02:15.9]} 20...
Rf8 {[%clk 0:02:23]} 21. Rf1 {[%clk 0:02:05.5]} 21... Rae8 {[%clk 0:02:01.7]}
22. f4 {[%clk 0:02:02.7]} 22... Qg6 {[%clk 0:01:54.9]} 23. Rg3 {[%clk
0:01:56.2]} 23... Qf5 {[%clk 0:01:42.2]} 24. Be3 {[%clk 0:01:43.3]} 24... a6
{[%clk 0:01:38.8]} 25. a3 {[%clk 0:01:37.3]} 25... Rf6 {[%clk 0:01:35.6]} 26. b4
{[%clk 0:01:33.2]} 26... Rg6 {[%clk 0:01:33.9]} 27. Rxg6 {[%clk 0:01:29.3]}
27... Qxg6 {[%clk 0:01:31.9]} 28. Qf2 {[%clk 0:01:16.2]} 28... Rf8 {[%clk
0:01:10.6]} 29. Qg3 {[%clk 0:00:52.7]} 29... Qf7 {[%clk 0:00:47.6]} 30. Qf2
{[%clk 0:00:46.9]} 30... h6 {[%clk 0:00:44.4]} 31. Qg3 {[%clk 0:00:40.5]} 31...
g6 {[%clk 0:00:40.8]} 32. Qh4 {[%clk 0:00:32.1]} 32... h5 {[%clk 0:00:36.2]} 33.
Qg5 {[%clk 0:00:26.9]} 33... Qf5 {[%clk 0:00:19.1]} 34. Qh6 {[%clk 0:00:21.9]}
34... Qg4 {[%clk 0:00:14.8]} 35. Bd4 {[%clk 0:00:19.6]} 35... Rf7 {[%clk
0:00:12]} 36. Qh8# {[%clk 0:00:18.2]} 1-0

[Event "Live Chess"]
[Site "Chess.com"]
[Date "2023.05.21"]
[Round "-"]
[White "LutherSullivan"]
[Black "grillage"]
[Result "1-0"]
[WhiteElo "2109"]
[BlackElo "1800"]
[TimeControl "300"]
[EndTime "17:41:05 PDT"]
[Termination "LutherSullivan won by resignation"]

1. c4 {[%clk 0:04:56.6]} 1... b6 {[%clk 0:04:58.1]} 2. Nc3 {[%clk 0:04:50.3]}
2... Bb7 {[%clk 0:04:52.6]} 3. e4 {[%clk 0:04:49.2]} 3... e6 {[%clk 0:04:46.9]}
4. d3 {[%clk 0:04:47.8]} 4... Bb4 {[%clk 0:04:37.3]} 5. Bd2 {[%clk 0:04:46.5]}
5... Ne7 {[%clk 0:04:34]} 6. Qg4 {[%clk 0:04:31.3]} 6... Ng6 {[%clk 0:04:28.6]}
7. h4 {[%clk 0:04:27.1]} 7... Qf6 {[%clk 0:04:14]} 8. h5 {[%clk 0:04:13.7]} 8...
Ne5 {[%clk 0:04:12.7]} 9. Qg3 {[%clk 0:04:10.6]} 9... Nbc6 {[%clk 0:03:50.3]}
10. f4 {[%clk 0:03:19.9]} 10... Nd4 {[%clk 0:03:34.9]} 11. Rc1 {[%clk
0:03:16.1]} 11... Nec6 {[%clk 0:03:26.8]} 12. a3 {[%clk 0:02:44.8]} 12... Bxc3
{[%clk 0:03:19.6]} 13. Bxc3 {[%clk 0:02:42.7]} 13... O-O-O {[%clk 0:03:14.9]}
14. Ne2 {[%clk 0:02:30.6]} 14... g5 {[%clk 0:02:11.2]} 15. fxg5 {[%clk
0:02:05.6]} 15... Qg7 {[%clk 0:01:53.3]} 16. h6 {[%clk 0:02:01.7]} 16... Qg6
{[%clk 0:01:43.6]} 17. Nxd4 {[%clk 0:01:59.5]} 17... Rhg8 {[%clk 0:01:18.3]} 18.
Nxc6 {[%clk 0:01:52]} 18... Bxc6 {[%clk 0:01:17.2]} 19. Be2 {[%clk 0:01:49.3]}
19... f5 {[%clk 0:01:11.3]} 20. Bh5 {[%clk 0:01:44.7]} 20... Qxg5 {[%clk
0:01:07.6]} 21. Qxg5 {[%clk 0:01:41.3]} 21... Rxg5 {[%clk 0:01:07.1]} 22. Bf6
{[%clk 0:01:40.5]} 22... Rxg2 {[%clk 0:01:00.7]} 23. Bxd8 {[%clk 0:01:37.7]}
23... Kxd8 {[%clk 0:00:59.5]} 24. Bf3 {[%clk 0:01:31.4]} 24... Rxb2 {[%clk
0:00:57.7]} 25. O-O {[%clk 0:01:29.2]} 25... fxe4 {[%clk 0:00:48.6]} 26. Bxe4
{[%clk 0:01:27.3]} 1-0

[Event "Live Chess"]
[Site "Chess.com"]
[Date "2023.05.21"]
[Round "-"]
[White "CeladonFish"]
[Black "Cimon"]
[Result "0-1"]
[WhiteElo "1088"]
[BlackElo "1857"]
[TimeControl "300"]
[EndTime "17:41:20 PDT"]
[Termination "Cimon won by resignation"]

1. d4 {[%clk 0:04:57.9]} 1... d5 {[%clk 0:04:58.6]} 2. c3 {[%clk 0:04:57.3]}
2... Nf6 {[%clk 0:04:55.8]} 3. Nf3 {[%clk 0:04:56.8]} 3... c5 {[%clk 0:04:54.5]}
4. Nbd2 {[%clk 0:04:55.4]} 4... Nc6 {[%clk 0:04:53]} 5. e4 {[%clk 0:04:54.7]}
5... dxe4 {[%clk 0:04:50.7]} 6. Ne5 {[%clk 0:04:52.9]} 6... cxd4 {[%clk
0:04:46.7]} 7. cxd4 {[%clk 0:04:51.6]} 7... Qxd4 {[%clk 0:04:38.9]} 8. f4 {[%clk
0:04:35.2]} 8... g6 {[%clk 0:03:50.7]} 9. Nxc6 {[%clk 0:04:29.5]} 9... bxc6
{[%clk 0:03:48.5]} 10. Qc2 {[%clk 0:04:27.1]} 10... Bd7 {[%clk 0:03:42.4]} 11.
Nb3 {[%clk 0:04:10.2]} 11... Qb6 {[%clk 0:03:33.8]} 12. Nc5 {[%clk 0:04:08]}
12... Bg7 {[%clk 0:03:26.9]} 13. g4 {[%clk 0:03:49.1]} 13... Bxg4 {[%clk
0:03:08.3]} 14. h3 {[%clk 0:03:40.1]} 14... Bf3 {[%clk 0:03:04.4]} 15. Rg1
{[%clk 0:03:37.5]} 15... O-O {[%clk 0:02:59]} 0-1

[Event "Live Chess"]
[Site "Chess.com"]
[Date "2023.05.21"]
[Round "-"]
[White "romchyk1219"]
[Black "jimwad"]
[Result "0-1"]
[WhiteElo "634"]
[BlackElo "1254"]
[TimeControl "300"]
[EndTime "17:41:34 PDT"]
[Termination "jimwad won by resignation"]

1. e4 {[%clk 0:04:58.7]} 1... e5 {[%clk 0:04:59]} 2. Nf3 {[%clk 0:04:58.1]} 2...
Nc6 {[%clk 0:04:57.9]} 3. Bb5 {[%clk 0:04:57.6]} 3... Nf6 {[%clk 0:04:56.4]} 4.
Nc3 {[%clk 0:04:56.3]} 4... Bc5 {[%clk 0:04:54.9]} 5. O-O {[%clk 0:04:55.1]}
5... d6 {[%clk 0:04:52.3]} 6. d4 {[%clk 0:04:36.1]} 6... exd4 {[%clk 0:04:50.1]}
7. Nxd4 {[%clk 0:04:36]} 7... Bd7 {[%clk 0:04:45.4]} 8. Nxc6 {[%clk 0:04:31.5]}
8... Bxc6 {[%clk 0:04:43.9]} 9. Bxc6+ {[%clk 0:04:30.9]} 9... bxc6 {[%clk
0:04:42.6]} 10. Bg5 {[%clk 0:04:25.2]} 10... O-O {[%clk 0:04:38.8]} 11. Ne2
{[%clk 0:04:11.8]} 11... h6 {[%clk 0:04:37]} 12. Bh4 {[%clk 0:04:01.5]} 12... g5
{[%clk 0:04:35.1]} 13. Bg3 {[%clk 0:03:59.3]} 13... Nxe4 {[%clk 0:04:33.4]} 14.
a3 {[%clk 0:03:42]} 14... Nxg3 {[%clk 0:04:22.2]} 15. Nxg3 {[%clk 0:03:41.9]}
15... d5 {[%clk 0:04:06.2]} 16. b4 {[%clk 0:03:37.8]} 16... Bd6 {[%clk
0:04:04.3]} 17. Nf5 {[%clk 0:03:34.4]} 17... Qf6 {[%clk 0:03:57.3]} 18. Nxd6
{[%clk 0:03:31.5]} 18... cxd6 {[%clk 0:03:55.5]} 19. Rc1 {[%clk 0:03:20]} 19...
Rac8 {[%clk 0:03:52.5]} 20. c4 {[%clk 0:03:18.2]} 20... dxc4 {[%clk 0:03:50.2]}
21. Rxc4 {[%clk 0:03:17.5]} 21... d5 {[%clk 0:03:48.4]} 22. Rc3 {[%clk 0:03:06]}
22... Qxc3 {[%clk 0:03:45.4]} 23. Re1 {[%clk 0:03:01.2]} 23... Qxa3 {[%clk
0:03:42.8]} 0-1

[Event "Live Chess"]
[Site "Chess.com"]
[Date "2023.05.21"]
[Round "-"]
[White "gmnorfolk"]
[Black "GMHarry-youtube"]
[Result "1-0"]
[WhiteElo "2126"]
[BlackElo "2036"]
[TimeControl "300"]
[EndTime "17:41:39 PDT"]
[Termination "gmnorfolk won by resignation"]

1. d4 {[%clk 0:04:57.7]} 1... Nf6 {[%clk 0:04:58.1]} 2. c4 {[%clk 0:04:53.4]}
2... g6 {[%clk 0:04:57]} 3. Nc3 {[%clk 0:04:51.9]} 3... d5 {[%clk 0:04:54.8]} 4.
cxd5 {[%clk 0:04:49.8]} 4... Nxd5 {[%clk 0:04:54.7]} 5. Bd2 {[%clk 0:04:49]}
5... Bg7 {[%clk 0:04:53.1]} 6. e4 {[%clk 0:04:47.8]} 6... Nxc3 {[%clk 0:04:52]}
7. Bxc3 {[%clk 0:04:46.2]} 7... c5 {[%clk 0:04:50.7]} 8. d5 {[%clk 0:04:45.4]}
8... Bxc3+ {[%clk 0:04:49.2]} 9. bxc3 {[%clk 0:04:45.3]} 9... e6 {[%clk
0:04:48]} 10. Nf3 {[%clk 0:04:41.3]} 10... O-O {[%clk 0:04:45.7]} 11. Bc4 {[%clk
0:04:38]} 11... a6 {[%clk 0:04:42.5]} 12. Qd2 {[%clk 0:04:35.8]} 12... b5 {[%clk
0:04:41]} 13. Bb3 {[%clk 0:04:31.6]} 13... c4 {[%clk 0:04:40]} 14. Bc2 {[%clk
0:04:30.4]} 14... exd5 {[%clk 0:04:37.4]} 15. exd5 {[%clk 0:04:14.2]} 15... Bg4
{[%clk 0:04:34.5]} 16. Qf4 {[%clk 0:04:02.5]} 16... Re8+ {[%clk 0:04:31.1]} 17.
Kf1 {[%clk 0:03:59.9]} 17... Bxf3 {[%clk 0:04:22.2]} 18. Qxf3 {[%clk 0:03:56.4]}
18... Nd7 {[%clk 0:04:20.7]} 19. Rd1 {[%clk 0:03:53.5]} 19... Ne5 {[%clk
0:04:19.6]} 20. Qg3 {[%clk 0:03:49.6]} 20... Qf6 {[%clk 0:03:51.2]} 21. h3
{[%clk 0:03:41.4]} 21... Rad8 {[%clk 0:03:36.9]} 22. f4 {[%clk 0:03:20.7]} 22...
Nd7 {[%clk 0:03:28.7]} 23. Kf2 {[%clk 0:03:15.8]} 23... Nc5 {[%clk 0:03:21.9]}
24. Rhe1 {[%clk 0:03:07.8]} 24... Rxe1 {[%clk 0:03:16.5]} 25. Kxe1 {[%clk
0:03:02.4]} 25... Re8+ {[%clk 0:03:08.1]} 26. Kf2 {[%clk 0:02:59.2]} 26... Ne4+
{[%clk 0:03:06.3]} 27. Bxe4 {[%clk 0:02:57.5]} 27... Rxe4 {[%clk 0:03:06.2]} 28.
d6 {[%clk 0:02:23.6]} 28... Rxf4+ {[%clk 0:03:01.3]} 29. Kg1 {[%clk 0:02:21.3]}
29... Re4 {[%clk 0:02:43.2]} 30. d7 {[%clk 0:02:14.7]} 30... Qd8 {[%clk
0:02:41.7]} 31. Qd6 {[%clk 0:02:12.1]} 31... Re7 {[%clk 0:02:34.5]} 32. Qxe7
{[%clk 0:02:09.7]} 32... Qb6+ {[%clk 0:02:27.3]} 33. Kh1 {[%clk 0:02:05.9]} 1-0

[Event "Live Chess"]
[Site "Chess.com"]
[Date "2023.05.21"]
[Round "-"]
[White "DerbyKnight"]
[Black "raminguy"]
[Result "0-1"]
[WhiteElo "1568"]
[BlackElo "1943"]
[TimeControl "300"]
[EndTime "17:41:42 PDT"]
[Termination "raminguy won by resignation"]

1. d4 {[%clk 0:04:56.9]} 1... d5 {[%clk 0:04:58.5]} 2. Nf3 {[%clk 0:04:53.9]}
2... Nf6 {[%clk 0:04:57.4]} 3. e3 {[%clk 0:04:52.5]} 3... e6 {[%clk 0:04:56.8]}
4. Bd3 {[%clk 0:04:51]} 4... Be7 {[%clk 0:04:55.9]} 5. Nbd2 {[%clk 0:04:50]}
5... O-O {[%clk 0:04:55.2]} 6. O-O {[%clk 0:04:48.6]} 6... c5 {[%clk 0:04:54.7]}
7. b3 {[%clk 0:04:47.3]} 7... Nc6 {[%clk 0:04:53.6]} 8. Bb2 {[%clk 0:04:44.4]}
8... Qc7 {[%clk 0:04:52.6]} 9. a3 {[%clk 0:04:41.6]} 9... b6 {[%clk 0:04:51.4]}
10. Ne5 {[%clk 0:04:28.8]} 10... Bb7 {[%clk 0:04:48.4]} 11. f4 {[%clk
0:04:25.9]} 11... cxd4 {[%clk 0:04:44.7]} 12. exd4 {[%clk 0:04:24.2]} 12... Nxe5
{[%clk 0:04:41.9]} 13. fxe5 {[%clk 0:04:22]} 13... Ne4 {[%clk 0:04:41.2]} 14.
Nxe4 {[%clk 0:04:13.3]} 14... dxe4 {[%clk 0:04:39.9]} 15. Bc4 {[%clk 0:04:04.7]}
15... a6 {[%clk 0:04:37.4]} 16. Rf4 {[%clk 0:03:32.7]} 16... b5 {[%clk
0:04:31.9]} 17. Be2 {[%clk 0:03:09.7]} 17... Rac8 {[%clk 0:04:27.7]} 18. c4
{[%clk 0:03:03.9]} 18... bxc4 {[%clk 0:04:24.4]} 19. bxc4 {[%clk 0:03:03.8]}
19... f6 {[%clk 0:04:07.9]} 20. Rh4 {[%clk 0:02:05.6]} 20... fxe5 {[%clk
0:04:04.9]} 21. dxe5 {[%clk 0:02:03.3]} 21... Bxh4 {[%clk 0:04:03.1]} 22. Bh5
{[%clk 0:01:56.3]} 22... Rcd8 {[%clk 0:03:52.4]} 23. Qe2 {[%clk 0:01:56.2]}
23... Qe7 {[%clk 0:03:24.8]} 24. g3 {[%clk 0:01:41.7]} 24... Bg5 {[%clk
0:03:05.3]} 25. h4 {[%clk 0:01:23.1]} 25... Bh6 {[%clk 0:02:49.9]} 26. g4 {[%clk
0:01:15.3]} 26... Qxh4 {[%clk 0:02:46.4]} 27. Bc3 {[%clk 0:01:03.4]} 27... Qg3+
{[%clk 0:02:42.2]} 28. Qg2 {[%clk 0:00:59.1]} 28... Qxc3 {[%clk 0:02:37.6]} 0-1

[Event "Live Chess"]
[Site "Chess.com"]
[Date "2023.05.21"]
[Round "-"]
[White "stevochess11"]
[Black "chessfiction"]
[Result "0-1"]
[WhiteElo "1784"]
[BlackElo "2346"]
[TimeControl "300"]
[EndTime "17:41:47 PDT"]
[Termination "chessfiction won by resignation"]

1. e4 {[%clk 0:04:55.3]} 1... d5 {[%clk 0:04:59.4]} 2. f3 {[%clk 0:04:53.4]}
2... c6 {[%clk 0:04:59.3]} 3. c3 {[%clk 0:04:51.9]} 3... h5 {[%clk 0:04:58.5]}
4. h4 {[%clk 0:04:50.4]} 4... e5 {[%clk 0:04:56.9]} 5. d3 {[%clk 0:04:48.7]}
5... Bc5 {[%clk 0:04:54.6]} 6. b4 {[%clk 0:04:46.2]} 6... Bxg1 {[%clk 0:04:51]}
7. Rxg1 {[%clk 0:04:45]} 7... Qxh4+ {[%clk 0:04:50.9]} 8. Ke2 {[%clk 0:04:41.9]}
8... dxe4 {[%clk 0:04:47.7]} 9. dxe4 {[%clk 0:04:38.8]} 9... Qh2 {[%clk
0:04:45.9]} 10. Be3 {[%clk 0:04:36.4]} 10... Be6 {[%clk 0:04:41.5]} 11. Qd6
{[%clk 0:04:27]} 11... Na6 {[%clk 0:04:35]} 12. Na3 {[%clk 0:04:10.7]} 12... Rd8
{[%clk 0:04:33.6]} 13. Qxc6+ {[%clk 0:04:04.8]} 13... bxc6 {[%clk 0:04:31.9]}
0-1

[Event "Live Chess"]
[Site "Chess.com"]
[Date "2023.05.21"]
[Round "-"]
[White "Tilbs_12"]
[Black "SupremeTactician"]
[Result "0-1"]
[WhiteElo "1557"]
[BlackElo "2325"]
[TimeControl "300"]
[EndTime "17:42:05 PDT"]
[Termination "SupremeTactician won by resignation"]

1. e4 {[%clk 0:04:56.5]} 1... e5 {[%clk 0:04:58.4]} 2. Nf3 {[%clk 0:04:55]} 2...
Nc6 {[%clk 0:04:57.6]} 3. c3 {[%clk 0:04:54.5]} 3... d5 {[%clk 0:04:55.6]} 4.
exd5 {[%clk 0:04:52.9]} 4... Qxd5 {[%clk 0:04:55.5]} 5. Na3 {[%clk 0:04:48.7]}
5... Bg4 {[%clk 0:04:54.1]} 6. Be2 {[%clk 0:04:36.9]} 6... e4 {[%clk 0:04:51.7]}
7. Ng1 {[%clk 0:04:31.2]} 7... Bxe2 {[%clk 0:04:50.2]} 8. Qxe2 {[%clk
0:04:29.8]} 8... O-O-O {[%clk 0:04:49]} 9. Nh3 {[%clk 0:04:22.5]} 9... f5 {[%clk
0:04:47.6]} 10. c4 {[%clk 0:04:13.5]} 10... Qd7 {[%clk 0:04:45.4]} 11. Nc2
{[%clk 0:04:10.6]} 11... Nf6 {[%clk 0:04:42.8]} 12. b4 {[%clk 0:03:54.2]} 12...
Bxb4 {[%clk 0:04:39.9]} 13. Nxb4 {[%clk 0:03:51.4]} 13... Nxb4 {[%clk
0:04:39.8]} 14. O-O {[%clk 0:03:45.3]} 14... Qd3 {[%clk 0:04:38.9]} 15. Qxd3
{[%clk 0:03:43.7]} 15... Nxd3 {[%clk 0:04:38.8]} 16. Ba3 {[%clk 0:03:41]} 16...
h6 {[%clk 0:04:36.9]} 17. Rab1 {[%clk 0:03:35.3]} 17... Rhe8 {[%clk 0:04:35.3]}
18. Kh1 {[%clk 0:03:26.9]} 18... g5 {[%clk 0:04:32.9]} 19. Ng1 {[%clk
0:03:24.9]} 19... Ng4 {[%clk 0:04:28.4]} 20. Ne2 {[%clk 0:03:11.4]} 20... Ngxf2+
{[%clk 0:04:25.1]} 21. Kg1 {[%clk 0:03:09.8]} 21... e3 {[%clk 0:04:23.9]} 22.
dxe3 {[%clk 0:03:07.1]} 22... Rxe3 {[%clk 0:04:23.8]} 23. Rb3 {[%clk 0:02:57.3]}
23... Rxe2 {[%clk 0:04:22.2]} 0-1

[Event "Live Chess"]
[Site "Chess.com"]
[Date "2023.05.21"]
[Round "-"]
[White "M00nDr4g0n"]
[Black "LodeshChess"]
[Result "0-1"]
[WhiteElo "877"]
[BlackElo "1160"]
[TimeControl "300"]
[EndTime "17:42:29 PDT"]
[Termination "LodeshChess won by resignation"]

1. e4 {[%clk 0:04:57.9]} 1... c6 {[%clk 0:04:59.1]} 2. Nc3 {[%clk 0:04:54.4]}
2... d5 {[%clk 0:04:58.3]} 3. Nf3 {[%clk 0:04:41.9]} 3... Bg4 {[%clk 0:04:51.9]}
4. Be2 {[%clk 0:04:38.4]} 4... Bxf3 {[%clk 0:04:50.6]} 5. Bxf3 {[%clk
0:04:34.6]} 5... e6 {[%clk 0:04:47.8]} 6. O-O {[%clk 0:04:31.4]} 6... Bb4 {[%clk
0:04:46]} 7. b3 {[%clk 0:04:25.7]} 7... Bxc3 {[%clk 0:04:36.9]} 8. dxc3 {[%clk
0:04:23.1]} 8... Nf6 {[%clk 0:04:32.3]} 9. Bb2 {[%clk 0:04:20.2]} 9... O-O
{[%clk 0:04:25.6]} 10. Qe2 {[%clk 0:04:12.4]} 10... dxe4 {[%clk 0:04:13.7]} 11.
c4 {[%clk 0:03:59.2]} 11... exf3 {[%clk 0:04:10.4]} 12. Qxf3 {[%clk 0:03:57.8]}
12... Nbd7 {[%clk 0:04:08]} 13. Qd3 {[%clk 0:03:53]} 13... Qc7 {[%clk
0:04:02.3]} 14. Rad1 {[%clk 0:03:49.4]} 14... Rad8 {[%clk 0:03:58.2]} 15. Qg3
{[%clk 0:03:42]} 15... Qxg3 {[%clk 0:03:51.5]} 16. hxg3 {[%clk 0:03:39.9]} 16...
Nc5 {[%clk 0:03:47.7]} 17. Rxd8 {[%clk 0:03:35.1]} 17... Rxd8 {[%clk 0:03:46.2]}
18. b4 {[%clk 0:03:31.2]} 18... Ncd7 {[%clk 0:03:38.1]} 19. c5 {[%clk
0:03:28.3]} 19... Nd5 {[%clk 0:03:30.4]} 20. Bd4 {[%clk 0:03:23]} 20... Nf8
{[%clk 0:03:24.5]} 21. f4 {[%clk 0:03:18.5]} 21... Nxb4 {[%clk 0:03:20.1]} 22.
c3 {[%clk 0:03:08.5]} 22... Nxa2 {[%clk 0:03:12.9]} 23. Rf3 {[%clk 0:03:00.2]}
23... Nc1 {[%clk 0:03:08.8]} 24. Be5 {[%clk 0:02:45.5]} 24... Rd3 {[%clk
0:02:48.8]} 25. Rf2 {[%clk 0:02:40.7]} 25... Rxg3 {[%clk 0:02:40.6]} 26. Kh2
{[%clk 0:02:38.5]} 26... Rg6 {[%clk 0:02:33.7]} 27. Rc2 {[%clk 0:02:32.6]} 27...
Nd3 {[%clk 0:02:27.4]} 28. Bb8 {[%clk 0:02:30.3]} 28... a6 {[%clk 0:02:24.7]}
29. Ba7 {[%clk 0:02:26.9]} 29... Nxf4 {[%clk 0:02:21]} 30. Rd2 {[%clk
0:02:25.2]} 30... Nd5 {[%clk 0:02:14.8]} 31. c4 {[%clk 0:02:21.8]} 31... Ne3
{[%clk 0:02:04.1]} 32. Rd8 {[%clk 0:02:20]} 32... Rxg2+ {[%clk 0:01:56]} 33. Kh1
{[%clk 0:02:17]} 33... Rc2 {[%clk 0:01:51.4]} 34. Rb8 {[%clk 0:02:07.2]} 34...
Rb2 {[%clk 0:01:47.2]} 35. Kg1 {[%clk 0:02:01.3]} 35... Nxc4 {[%clk 0:01:45.7]}
36. Kf1 {[%clk 0:01:58.8]} 36... g6 {[%clk 0:01:44.7]} 37. Ke1 {[%clk
0:01:57.1]} 37... Kg7 {[%clk 0:01:44.3]} 38. Kd1 {[%clk 0:01:54]} 38... Nd7
{[%clk 0:01:39.4]} 39. Rd8 {[%clk 0:01:49]} 39... Nde5 {[%clk 0:01:29.2]} 40.
Rd4 {[%clk 0:01:39.5]} 40... Rb5 {[%clk 0:01:21.2]} 41. Rxc4 {[%clk 0:01:34.8]}
41... Nxc4 {[%clk 0:01:18.8]} 0-1